bitfinex/quotes_BTCUSD_20250602
["timestamp","ask_amount","ask_price","bid_price","bid_amount"]
[1748830801641,0.65398066,105230.0,105220.0,0.25136783]
[1748830802175,0.65398066,105230.0,105220.0,0.05178601]
[1748830802495,0.65398066,105230.0,105220.0,0.05178604]
[1748830802695,0.65398066,105230.0,105220.0,0.05178458]
[1748830803380,0.65398066,105230.0,105220.0,0.0517837]
[1748830803555,0.65398066,105230.0,105220.0,0.0413837]
[1748830803752,0.65398066,105230.0,105220.0,0.05027189]
[1748830803958,0.04262316,105230.0,105220.0,0.05027202]
[1748830804176,0.43652579,105230.0,105220.0,0.04137643]
[1748830804336,0.45202579,105230.0,105220.0,0.21185436]
[1748830804547,0.6265861,105230.0,105220.0,0.03787643]
[1748830804754,0.44702923,105230.0,105220.0,0.22795436]
[1748830804982,0.43752624,105230.0,105220.0,0.21906604]
[1748830805179,0.43752624,105230.0,105220.0,0.22795374]
[1748830805379,0.44702923,105230.0,105220.0,0.22795208]
[1748830805744,0.43752624,105230.0,105220.0,0.22795208]
[1748830805971,0.44602914,105230.0,105220.0,0.22395208]
[1748830806193,0.44702914,105230.0,105220.0,0.2249521]
[1748830806418,0.45757819,105230.0,105220.0,0.22495271]
[1748830806634,0.66423805,105230.0,105220.0,0.22495271]
[1748830806874,0.47417819,105230.0,105220.0,0.20885271]
[1748830807285,0.47417819,105230.0,105220.0,0.20885206]
[1748830807469,0.46467529,105230.0,105220.0,0.20885206]
[1748830807680,0.47417828,105230.0,105220.0,0.21773677]
[1748830807886,0.45757765,105230.0,105220.0,0.23323677]
[1748830808039,0.46708064,105230.0,105220.0,0.22435206]
[1748830808258,0.45757765,105230.0,105220.0,0.22435206]
[1748830808473,0.46708064,105230.0,105220.0,0.23323671]
[1748830808669,0.45757765,105230.0,105220.0,0.23323671]
[1748830809075,0.45757765,105230.0,105220.0,0.23323616]
[1748830809478,0.43757765,105230.0,105220.0,0.23323616]
[1748830809691,0.43757765,105230.0,105220.0,0.22435206]
[1748830809859,0.43757765,105230.0,105220.0,0.23323742]
[1748830810413,0.43757765,105230.0,105220.0,0.2332371]
[1748830811088,0.6626434,105230.0,105220.0,0.2177371]
[1748830811282,0.45357819,105230.0,105220.0,0.2177371]
[1748830811521,0.46811904,105230.0,105220.0,0.21773833]
[1748830812159,0.46811904,105230.0,105220.0,0.22662441]
[1748830812573,0.46811904,105230.0,105220.0,0.21773833]
[1748830812776,0.45861614,105230.0,105220.0,0.22662431]
[1748830812978,0.45861614,105230.0,105220.0,0.21773833]
[1748830813183,0.45861614,105230.0,105220.0,0.22662431]
[1748830813418,0.46811913,105230.0,105220.0,0.2266247]
[1748830813827,0.46811913,105230.0,105220.0,0.22662472]
[1748830813967,0.45861614,105230.0,105220.0,0.22662472]
[1748830814173,0.46811913,105230.0,105220.0,0.22662472]
[1748830814370,0.45861614,105230.0,105220.0,0.22662472]
[1748830814590,0.45861614,105230.0,105220.0,0.21773833]
[1748830814970,0.4681185,105230.0,105220.0,0.22662528]
[1748830815188,0.4681585,105230.0,105220.0,0.21773833]
[1748830815414,0.43315306,105230.0,105220.0,0.24294213]
[1748830815632,0.45215823,105230.0,105220.0,0.24294222]
[1748830815845,0.44265551,105230.0,105220.0,0.24232572]
[1748830816072,0.45215805,105230.0,105220.0,0.24232572]
[1748830816308,0.46166077,105230.0,105220.0,0.25182961]
[1748830816789,0.46166077,105230.0,105220.0,0.25182989]
[1748830817033,0.46166077,105230.0,105220.0,0.25244602]
[1748830817487,0.46166077,105230.0,105220.0,0.26133446]
[1748830817942,0.47696077,105230.0,105220.0,0.23613066]
[1748830818195,0.47393875,105230.0,105220.0,0.23613066]
[1748830818665,0.47393875,105230.0,105220.0,0.22724222]
[1748830818873,0.52393875,105230.0,105220.0,0.23674602]
[1748830819049,0.50863875,105230.0,105220.0,0.23674602]
[1748830819287,0.50863875,105230.0,105220.0,0.25254602]
[1748830819695,0.50863875,105230.0,105220.0,0.24304222]
[1748830819913,0.50863875,105230.0,105220.0,0.25254602]
[1748830820363,0.51814174,105230.0,105220.0,0.251934]
[1748830820606,0.51814165,105230.0,105220.0,0.25254602]
[1748830820864,0.73019915,105230.0,105220.0,0.21773833]
[1748830821106,0.52393929,105230.0,105220.0,0.22663243]
[1748830821357,0.52393929,105230.0,105220.0,0.24503042]
[1748830821603,0.71399915,105230.0,105220.0,0.23552653]
[1748830821838,0.71399915,105230.0,105220.0,0.24442063]
[1748830822259,0.69499416,105230.0,105220.0,0.25331472]
[1748830822473,0.71089416,105230.0,105220.0,0.23552956]
[1748830822731,0.71089416,105230.0,105220.0,0.22663243]
[1748830822960,0.69499416,105230.0,105220.0,0.22663243]
[1748830823181,1.10555416,105230.0,105220.0,0.23552956]
[1748830823402,1.10555416,105230.0,105220.0,0.22663243]
[1748830823618,1.10555416,105230.0,105220.0,0.23553313]
[1748830823838,1.11505715,105230.0,105220.0,0.23553313]
[1748830824045,1.11505715,105230.0,105220.0,0.22663243]
[1748830824253,1.11505715,105230.0,105220.0,0.23553285]
[1748830824735,1.10555443,105230.0,105220.0,0.23553285]
[1748830824956,1.12075443,105230.0,105220.0,0.04545492]
[1748830825342,1.12075443,105230.0,105220.0,0.04545445]
[1748830825983,1.46075443,105230.0,105220.0,0.04545445]
[1748830826382,1.46075443,105230.0,105220.0,0.04545482]
[1748830826784,1.46075443,105230.0,105220.0,0.0365545]
[1748830826985,1.55560873,105230.0,105220.0,0.04445285]
[1748830827308,1.55560873,105230.0,105220.0,0.0355545]
[1748830827690,1.55760873,105230.0,105220.0,0.0365545]
[1748830827893,1.55660873,105230.0,105220.0,0.0365545]
[1748830828321,1.55860873,105230.0,105220.0,0.0365545]
[1748830828689,1.55660873,105230.0,105220.0,0.0365545]
[1748830829135,1.55760873,105230.0,105220.0,0.0365545]
[1748830829536,1.56060873,105230.0,105220.0,0.0365545]
[1748830833026,5.22244295,105230.0,105220.0,0.0365545]
[1748830833435,5.12993173,105230.0,105220.0,0.0365545]
[1748830834476,5.12974166,105230.0,105220.0,0.0365545]
[1748830835988,4.74530166,105230.0,105220.0,0.0365545]
[1748830836205,5.12978166,105230.0,105220.0,0.0365545]
[1748830837439,4.74530166,105230.0,105220.0,0.0365545]
[1748830837658,5.12978166,105230.0,105220.0,0.0365545]
[1748830839682,4.74530166,105230.0,105220.0,0.0365545]
[1748830839914,5.11458166,105230.0,105220.0,0.0365545]
[1748830842342,4.73010166,105230.0,105220.0,0.0365545]
[1748830842558,5.11458166,105230.0,105220.0,0.0365545]
[1748830843119,5.13088166,105230.0,105220.0,0.0365545]
[1748830851807,5.11458166,105230.0,105220.0,0.0365545]
[1748830852016,5.11454166,105230.0,105220.0,0.0365545]
[1748830852440,5.13074166,105230.0,105220.0,0.0365545]
[1748830852651,5.14799832,105230.0,105220.0,0.0365545]
[1748830853138,5.13074166,105230.0,105220.0,0.0365545]
[1748830856077,4.74630166,105230.0,105220.0,0.0365545]
[1748830856290,5.13074166,105230.0,105220.0,0.0365545]
[1748830862408,4.74630166,105230.0,105220.0,0.0365545]
[1748830862611,5.13074166,105230.0,105220.0,0.0365545]
[1748830863165,5.12019261,105230.0,105220.0,0.0365545]
[1748830864227,4.73575261,105230.0,105220.0,0.0365545]
[1748830864473,5.12019261,105230.0,105220.0,0.0365545]
[1748830865543,5.18568449,105230.0,105220.0,0.0365545]
[1748830866339,5.15367226,105230.0,105220.0,0.0365545]
[1748830866569,5.18570601,105230.0,105220.0,0.0365545]
[1748830868110,5.18566601,105230.0,105220.0,0.0365545]
[1748830870718,5.18570612,105230.0,105220.0,0.0365545]
[1748830875136,5.12015261,105230.0,105220.0,0.0365545]
[1748830875338,5.18573381,105230.0,105220.0,0.0365545]
[1748830879534,4.80133381,105230.0,105220.0,0.0365545]
[1748830879868,5.18569381,105230.0,105220.0,0.0365545]
[1748830881283,5.18569716,105230.0,105220.0,0.0365545]
[1748830884114,4.78513716,105230.0,105220.0,0.0365545]
[1748830884395,4.48971974,105230.0,105220.0,0.24563958]
[1748830884594,4.48971974,105230.0,105220.0,0.3047602]
[1748830884595,0.17471325,105230.0,105220.0,0.3047602]
[1748830884806,0.49678123,105230.0,105220.0,0.28634842]
[1748830885012,0.49678204,105230.0,105220.0,0.28634842]
[1748830885221,0.83678204,105230.0,105220.0,0.27684489]
[1748830885431,1.00783709,105230.0,105220.0,0.2863486]
[1748830885653,1.00783709,105230.0,105220.0,0.30475993]
[1748830885858,1.00783709,105230.0,105220.0,0.29585222]
[1748830886059,1.02237794,105230.0,105220.0,0.30535575]
[1748830886195,0.62347709,105230.0,105220.0,0.41011772]
[1748830886396,1.00783709,105230.0,105220.0,0.41011772]
[1748830886621,0.70477437,105230.0,105220.0,0.41902539]
[1748830886831,0.99829437,105230.0,105220.0,0.41011772]
[1748830887214,0.98879156,105230.0,105220.0,0.40061419]
[1748830887421,0.98879156,105230.0,105220.0,0.40952165]
[1748830887903,0.98879156,105230.0,105220.0,0.41842911]
[1748830888062,0.98879156,105230.0,105220.0,0.40952165]
[1748830888935,0.98879156,105230.0,105220.0,0.41842911]
[1748830889142,0.60447156,105230.0,105220.0,0.40892549]
[1748830889343,0.97928857,105230.0,105220.0,0.40001803]
[1748830889546,0.97928857,105230.0,105220.0,0.40890766]
[1748830890697,0.61397392,105230.0,105220.0,0.40952156]
[1748830890897,0.90749392,105230.0,105220.0,0.42731405]
[1748830891102,0.90749392,105230.0,105220.0,0.41842902]
[1748830891327,0.90749392,105230.0,105220.0,0.42731404]
[1748830891764,0.90749392,105230.0,105220.0,0.41842902]
[1748830891997,0.43341624,105230.0,105220.0,0.42793228]
[1748830892202,0.92649891,105230.0,105220.0,0.42793246]
[1748830892639,0.91699664,105230.0,105220.0,0.43681734]
[1748830892852,0.91699664,105230.0,105220.0,0.44570222]
[1748830893051,0.91699664,105230.0,105220.0,0.48186048]
[1748830893275,0.91699664,105230.0,105220.0,0.46409057]
[1748830893491,0.72693678,105230.0,105220.0,0.46409003]
[1748830893665,0.43341678,105230.0,105220.0,0.47297491]
[1748830894061,0.41441098,105230.0,105220.0,0.48185636]
[1748830894272,0.72689633,105230.0,105220.0,0.4818563]
[1748830894651,0.71847238,105230.0,105220.0,0.49073735]
[1748830894860,0.71847238,105230.0,105220.0,0.49073736]
[1748830895291,0.71547238,105230.0,105220.0,0.48973736]
[1748830895437,0.71747238,105230.0,105220.0,0.48973404]
[1748830895636,0.42399238,105230.0,105220.0,0.48973404]
[1748830895853,0.71747238,105230.0,105220.0,0.48973403]
[1748830896059,0.71447238,105230.0,105220.0,0.48973403]
[1748830896249,0.71447238,105230.0,105220.0,0.48085613]
[1748830896452,0.71647238,105230.0,105220.0,0.48185613]
[1748830896713,0.71647238,105230.0,105220.0,0.49073395]
[1748830897149,0.72597537,105230.0,105220.0,0.49073395]
[1748830897338,0.72597537,105230.0,105220.0,0.49961177]
[1748830897777,0.72597537,105230.0,105220.0,0.49960884]
[1748830897978,0.72597537,105230.0,105220.0,0.50848373]
[1748830898394,0.71647238,105230.0,105220.0,0.50848373]
[1748830898601,0.72597528,105230.0,105220.0,0.50848373]
[1748830900136,0.72597528,105230.0,105220.0,0.50848323]
[1748830901259,0.72597528,105230.0,105220.0,0.50848306]
[1748830902287,0.91603514,105230.0,105220.0,0.47046948]
[1748830902493,0.91603586,105230.0,105220.0,0.47997295]
[1748830902707,0.91603586,105230.0,105220.0,0.47997312]
[1748830903354,0.91203051,105230.0,105220.0,0.23908804]
[1748830903570,0.91706846,105230.0,105220.0,0.14323374]
[1748830903788,0.91706846,105230.0,105220.0,0.14323404]
[1748830904000,0.91706846,105230.0,105220.0,0.14323409]
[1748830904231,0.91706846,105230.0,105220.0,0.15273798]
[1748830904449,0.91706846,105230.0,105220.0,0.15273799]
[1748830904665,0.91706846,105230.0,105220.0,0.35921592]
[1748830904875,0.90206846,105230.0,105220.0,0.35921592]
[1748830905315,0.90206846,105230.0,105220.0,0.36871972]
[1748830905535,0.90206846,105230.0,105220.0,0.37822343]
[1748830905747,0.90206846,105230.0,105220.0,0.3782253]
[1748830906240,0.90206846,105230.0,105220.0,0.38710195]
[1748830906588,0.90206846,105230.0,105220.0,0.38710396]
[1748830906779,0.90206846,105230.0,105220.0,0.3782253]
[1748830907211,0.90206846,105230.0,105220.0,0.37822731]
[1748830907622,0.90206846,105230.0,105220.0,0.37822788]
[1748830907841,0.90206846,105230.0,105220.0,0.36872417]
[1748830908046,0.91716846,105230.0,105220.0,0.36872417]
[1748830908406,0.91716846,105230.0,105220.0,0.36872632]
[1748830909279,0.91716846,105230.0,105220.0,0.3687269]
[1748830909677,0.91716846,105230.0,105220.0,0.36873073]
[1748830909794,0.91716846,105230.0,105220.0,0.34344494]
[1748830909998,0.91716846,105230.0,105220.0,0.35233073]
[1748830910507,0.91716846,105230.0,105220.0,0.36183444]
[1748830911437,0.91716846,105230.0,105220.0,0.36183993]
[1748830911795,0.91716846,105230.0,105220.0,0.35294865]
[1748830912003,0.91716846,105230.0,105220.0,0.36183993]
[1748830912763,1.00788846,105230.0,105220.0,0.36184034]
[1748830913201,1.00788846,105230.0,105220.0,0.36185071]
[1748830913931,1.00788846,105230.0,105220.0,0.36185085]
[1748830914165,1.00776846,105230.0,105220.0,0.37135447]
[1748830914377,0.8121106,105230.0,105220.0,0.39625737]
[1748830914774,0.84061867,105230.0,105220.0,0.39625737]
[1748830914979,0.84061867,105230.0,105220.0,0.40515957]
[1748830915186,0.84061867,105230.0,105220.0,0.40515966]
[1748830915454,0.84061867,105230.0,105220.0,0.39625746]
[1748830915884,0.84061867,105230.0,105220.0,0.39625692]
[1748830916514,0.84061867,105230.0,105220.0,0.39625706]
[1748830916867,0.84061867,105230.0,105220.0,0.38675392]
[1748830917074,0.84061867,105230.0,105220.0,0.37785146]
[1748830917275,0.84061867,105230.0,105220.0,0.39625718]
[1748830918168,0.84061867,105230.0,105220.0,0.38735472]
[1748830918369,0.84061867,105230.0,105220.0,0.37785146]
[1748830918556,0.84061867,105230.0,105220.0,0.39565638]
[1748830918940,0.84061867,105230.0,105220.0,0.3956565]
[1748830919545,0.84061867,105230.0,105220.0,0.39565747]
[1748830920528,0.85571867,105230.0,105220.0,0.3956591]
[1748830920732,0.85571867,105230.0,105220.0,0.40516236]
[1748830920934,0.85571867,105230.0,105220.0,0.3956591]
[1748830921967,0.85571867,105230.0,105220.0,0.39565916]
[1748830922148,0.84621577,105230.0,105220.0,0.39625718]
[1748830922355,0.85571867,105230.0,105220.0,0.39565916]
[1748830922564,0.45263296,105230.0,105220.0,0.39565916]
[1748830922768,0.82157287,105230.0,105220.0,0.40516248]
[1748830923315,0.81207024,105230.0,105220.0,0.40516248]
[1748830923524,0.82157287,105230.0,105220.0,0.40516248]
[1748830923730,0.82157287,105230.0,105220.0,0.40516336]
[1748830924120,0.42803024,105230.0,105220.0,0.40516336]
[1748830924297,0.81199024,105230.0,105220.0,0.40516336]
[1748830924510,0.82149296,105230.0,105220.0,0.40516336]
[1748830924720,0.82149296,105230.0,105220.0,0.40516339]
[1748830925255,0.43753296,105230.0,105220.0,0.40516339]
[1748830925475,0.82149296,105230.0,105220.0,0.41406985]
[1748830925681,0.43753296,105230.0,105220.0,0.39866985]
[1748830925892,0.46353577,105230.0,105220.0,0.39866985]
[1748830926096,0.84749577,105230.0,105220.0,0.38976364]
[1748830926307,0.84749577,105230.0,105220.0,0.40757656]
[1748830926950,0.83799296,105230.0,105220.0,0.40757656]
[1748830927159,0.84749577,105230.0,105220.0,0.40757656]
[1748830927364,0.84749577,105230.0,105220.0,0.41648308]
[1748830927572,0.84749577,105230.0,105220.0,0.41648314]
[1748830927775,0.84749577,105230.0,105220.0,0.40757656]
[1748830927986,0.84749577,105230.0,105220.0,0.41648316]
[1748830928406,0.84749577,105230.0,105220.0,0.40757686]
[1748830929559,0.84749577,105230.0,105220.0,0.39867024]
[1748830929984,0.85699867,105230.0,105220.0,0.38916698]
[1748830930393,0.85699867,105230.0,105220.0,0.39807369]
[1748830930698,0.85699867,105230.0,105220.0,0.39807382]
[1748830930901,0.85699867,105230.0,105220.0,0.40757708]
[1748830931324,0.85699867,105230.0,105220.0,0.38980295]
[1748830932659,0.85699867,105230.0,105220.0,0.38980335]
[1748830933107,0.85699867,105230.0,105220.0,0.38089611]
[1748830933330,0.85699867,105230.0,105220.0,0.38980354]
[1748830933548,0.85699867,105230.0,105220.0,0.38980318]
[1748830933753,0.85699867,105230.0,105220.0,0.38089611]
[1748830933969,0.85699867,105230.0,105220.0,0.38980318]
[1748830934295,0.85699867,105230.0,105220.0,0.38980289]
[1748830934483,0.85699867,105230.0,105220.0,0.38089611]
[1748830934744,0.85699867,105230.0,105220.0,0.38980285]
[1748830935039,0.85699867,105230.0,105220.0,0.38089611]
[1748830935490,0.85699867,105230.0,105220.0,0.38980285]
[1748830936143,0.84749577,105230.0,105220.0,0.38980268]
[1748830936358,0.84749559,105230.0,105220.0,0.38980268]
[1748830936776,0.84749559,105230.0,105220.0,0.38089611]
[1748830937410,0.82337211,105230.0,105220.0,0.47675041]
[1748830937629,0.82337211,105230.0,105220.0,0.48565696]
[1748830938054,0.80687211,105230.0,105220.0,0.50085696]
[1748830938469,0.80687211,105230.0,105220.0,0.49195041]
[1748830938700,0.82237211,105230.0,105220.0,0.48565698]
[1748830938913,0.82237211,105230.0,105220.0,0.48565696]
[1748830940375,0.81286939,105230.0,105220.0,0.48565696]
[1748830940552,0.82237202,105230.0,105220.0,0.4856569]
[1748830940784,0.42299202,105230.0,105220.0,0.5020569]
[1748830941002,0.80687202,105230.0,105220.0,0.5020569]
[1748830941216,0.78786694,105230.0,105220.0,0.50205693]
[1748830941443,0.78786694,105230.0,105220.0,0.82756443]
[1748830941651,0.7973693,105230.0,105220.0,0.82756443]
[1748830941860,0.7973693,105230.0,105220.0,0.81865791]
[1748830942076,0.7973693,105230.0,105220.0,0.82756439]
[1748830942287,0.7973693,105230.0,105220.0,0.82756436]
[1748830942495,0.5041293,105230.0,105220.0,0.82756436]
[1748830942718,0.7973693,105230.0,105220.0,0.81865791]
[1748830942930,0.7973693,105230.0,105220.0,0.83647087]
[1748830943380,0.7973693,105230.0,105220.0,0.5185771]
[1748830943592,0.7973693,105230.0,105220.0,0.52748358]
[1748830943792,0.7973693,105230.0,105220.0,0.51098358]
[1748830943997,0.7973693,105230.0,105220.0,0.51098355]
[1748830944204,0.7973693,105230.0,105220.0,0.51989]
[1748830944412,0.7973693,105230.0,105220.0,0.50207707]
[1748830944646,0.7973693,105230.0,105220.0,0.51098352]
[1748830944847,0.7973693,105230.0,105220.0,0.51098354]
[1748830945080,0.39448476,105230.0,105220.0,0.51098354]
[1748830945291,0.68768476,105230.0,105220.0,0.84427731]
[1748830945500,0.68768476,105230.0,105220.0,0.84427717]
[1748830945944,0.69718694,105230.0,105220.0,0.83537084]
[1748830946159,0.68768476,105230.0,105220.0,0.83537084]
[1748830946670,0.68768476,105230.0,105220.0,0.51747707]
[1748830946883,0.68768476,105230.0,105220.0,0.84427704]
[1748830947090,0.68768476,105230.0,105220.0,0.87099581]
[1748830947499,0.39448476,105230.0,105220.0,0.87099581]
[1748830947709,0.68768476,105230.0,105220.0,0.87099581]
[1748830947916,0.68768476,105230.0,105220.0,0.87990201]
[1748830948344,0.39448476,105230.0,105220.0,0.87990201]
[1748830948554,0.68768476,105230.0,105220.0,0.87990201]
[1748830948756,0.39448476,105230.0,105220.0,0.88880813]
[1748830948966,0.39448476,105230.0,105220.0,1.27990201]
[1748830949385,0.39448476,105230.0,105220.0,1.2888082]
[1748830949796,0.39448476,105230.0,105220.0,1.30662036]
[1748830950490,0.4707297,105230.0,105220.0,0.95692659]
[1748830950703,0.72099745,105230.0,105220.0,0.51891301]
[1748830950925,0.72099745,105230.0,105220.0,0.53792034]
[1748830951148,0.72099745,105230.0,105220.0,0.53792052]
[1748830951379,0.72099745,105230.0,105220.0,0.54742414]
[1748830951590,0.72099745,105230.0,105220.0,0.55692767]
[1748830951804,0.72099745,105230.0,105220.0,0.53853004]
[1748830953146,0.72099745,105230.0,105220.0,0.54803357]
[1748830953799,0.64475251,105230.0,105220.0,0.54803357]
[1748830954024,0.64475251,105230.0,105220.0,0.54803312]
[1748830960983,0.63525015,105230.0,105220.0,0.53852968]
[1748830961196,0.72577015,105230.0,105220.0,0.53852968]
[1748830964347,0.72577015,105230.0,105220.0,0.54803312]
[1748830964572,0.72577015,105230.0,105220.0,0.54803258]
[1748830964573,0.41098476,105230.0,105220.0,0.54803258]
[1748830964797,0.78762694,105230.0,105220.0,0.88232635]
[1748830965022,0.40398694,105230.0,105220.0,0.88232635]
[1748830965246,0.7971293,105230.0,105220.0,0.88232635]
[1748830965474,0.48500476,105230.0,105220.0,0.89822635]
[1748830965697,0.78758694,105230.0,105220.0,0.89822635]
[1748830966622,0.79708921,105230.0,105220.0,0.89822635]
[1748830968864,0.79708921,105230.0,105220.0,0.88232635]
[1748830969478,0.78758694,105230.0,105220.0,0.88232635]
[1748830971461,0.7970893,105230.0,105220.0,0.56443258]
[1748830971701,0.7065293,105230.0,105220.0,0.54803258]
[1748830971904,0.7231293,105230.0,105220.0,0.54803258]
[1748830972341,0.94729469,105230.0,105220.0,0.51952253]
[1748830972548,0.94729469,105230.0,105220.0,0.52902606]
[1748830973182,0.95679768,105230.0,105220.0,0.5385295]
[1748830974707,0.93779314,105230.0,105220.0,0.52902606]
[1748830977359,0.93779314,105230.0,105220.0,0.5385295]
[1748830978691,0.92829051,105230.0,105220.0,0.52902606]
[1748830980770,1.01881051,105230.0,105220.0,0.52902606]
[1748830980983,1.01881051,105230.0,105220.0,0.51001891]
[1748830981187,1.03335136,105230.0,105220.0,0.42366841]
[1748830981412,1.02384846,105230.0,105220.0,0.22408668]
[1748830981623,1.02384846,105230.0,105220.0,0.42366841]
[1748830982867,1.02384846,105230.0,105220.0,0.22408668]
[1748830983075,1.02384846,105230.0,105220.0,0.21458279]
[1748830983291,1.01434547,105230.0,105220.0,0.21458279]
[1748830983960,1.01434547,105230.0,105220.0,0.22408668]
[1748830985727,1.01434547,105230.0,105220.0,0.21458279]
[1748830985955,1.10685669,105230.0,105220.0,0.21458279]
[1748830986183,1.11019977,105230.0,105220.0,0.21458279]
[1748830986405,1.18644471,105230.0,105220.0,0.21458279]
[1748830988198,1.11019977,105230.0,105220.0,0.21458279]
[1748830992183,1.11003977,105230.0,105220.0,0.21458279]
[1748830996426,0.58180494,105210.0,105200.0,0.23]
[1748830996691,0.9827761,105210.0,105200.0,0.23]
[1748830997357,1.00151879,105210.0,105200.0,0.23]
[1748830997598,1.00551879,105210.0,105200.0,0.231]
[1748830998055,1.00551879,105210.0,105200.0,0.216]
[1748830998670,1.00851879,105210.0,105200.0,0.217]
[1748831000941,1.05851879,105210.0,105200.0,0.217]
[1748831001602,1.06844035,105210.0,105200.0,0.217]
[1748831006844,1.06844035,105210.0,105200.0,0.40711406]
[1748831006845,1.0666812,105210.0,105200.0,0.40711406]
[1748831007060,1.0666812,105210.0,105200.0,0.217]
[1748831007274,0.6832812,105210.0,105200.0,0.217]
[1748831007491,1.0502812,105210.0,105200.0,0.2335]
[1748831007916,1.0660812,105210.0,105200.0,0.2335]
[1748831008099,1.0660812,105210.0,105200.0,0.217]
[1748831009733,1.0817812,105210.0,105200.0,0.217]
[1748831016648,1.0817412,105210.0,105200.0,0.217]
[1748831020515,0.6983812,105210.0,105200.0,0.217]
[1748831020759,1.0659212,105210.0,105200.0,0.217]
[1748831021629,1.0813212,105210.0,105200.0,0.217]
[1748831023361,1.0812812,105210.0,105200.0,0.217]
[1748831026507,1.0658812,105210.0,105200.0,0.217]
[1748831026935,0.6826812,105210.0,105200.0,0.217]
[1748831027146,1.0658812,105210.0,105200.0,0.217]
[1748831027360,1.0500812,105210.0,105200.0,0.217]
[1748831027568,1.0500812,105210.0,105200.0,0.2329]
[1748831027781,1.0651812,105210.0,105200.0,0.217]
[1748831029261,1.0805812,105210.0,105200.0,0.217]
[1748831033647,1.06301004,105210.0,105200.0,0.217]
[1748831039486,1.04753004,105210.0,105200.0,0.217]
[1748831039908,1.06393004,105210.0,105200.0,0.217]
[1748831043087,1.05400848,105210.0,105200.0,0.217]
[1748831048033,0.76124848,105210.0,105200.0,0.217]
[1748831048231,1.05396848,105210.0,105200.0,0.217]
[1748831054868,1.02234848,105210.0,105200.0,0.217]
[1748831055093,0.72966848,105210.0,105200.0,0.232]
[1748831055341,1.02234848,105210.0,105200.0,0.232]
[1748831056379,1.03804848,105210.0,105200.0,0.217]
[1748831058304,0.74536848,105210.0,105200.0,0.217]
[1748831058516,1.03804848,105210.0,105200.0,0.217]
[1748831059034,0.65508848,105210.0,105200.0,0.42612519]
[1748831059259,1.02234848,105210.0,105200.0,0.43201976]
[1748831060409,1.02234848,105210.0,105200.0,0.2419057]
[1748831060611,1.01284414,105210.0,105200.0,0.2419057]
[1748831060810,1.01284414,105210.0,105200.0,0.2324]
[1748831061138,1.02784414,105210.0,105200.0,0.2324]
[1748831061397,1.02784414,105210.0,105200.0,0.217]
[1748831065197,0.41600895,105210.0,105200.0,0.76880738]
[1748831065412,1.00803353,105210.0,105200.0,0.77550231]
[1748831065626,1.00803353,105210.0,105200.0,0.45742501]
[1748831065839,1.00803353,105210.0,105200.0,0.46693026]
[1748831066320,0.99852946,105210.0,105200.0,0.46693026]
[1748831067376,0.99852946,105210.0,105200.0,0.89036693]
[1748831067377,0.71811338,105210.0,105200.0,0.89036693]
[1748831067589,0.71811338,105210.0,105200.0,0.57228963]
[1748831067791,0.72761817,105210.0,105200.0,0.57228963]
[1748831067999,0.43501817,105210.0,105200.0,0.57228963]
[1748831068207,0.72761817,105210.0,105200.0,0.57228963]
[1748831068949,0.71811338,105210.0,105200.0,0.57228963]
[1748831069161,0.72761808,105210.0,105200.0,0.57228963]
[1748831071465,0.42551338,105210.0,105200.0,0.57228963]
[1748831071677,0.71807338,105210.0,105200.0,0.57228963]
[1748831073396,0.71807329,105210.0,105200.0,0.57228963]
[1748831074033,0.7275779,105210.0,105200.0,0.57228963]
[1748831075061,0.72757826,105210.0,105200.0,0.56278447]
[1748831075470,0.72757826,105210.0,105200.0,0.54658447]
[1748831076722,0.72757826,105210.0,105200.0,0.55608954]
[1748831076931,0.73708305,105210.0,105200.0,0.55608954]
[1748831077138,0.72757862,105210.0,105200.0,0.54658447]
[1748831077557,0.91767461,105210.0,105200.0,0.53707931]
[1748831077765,0.91426548,105210.0,105200.0,0.217]
[1748831077979,0.91426548,105210.0,105200.0,0.2265057]
[1748831078187,0.92880633,105210.0,105200.0,0.217]
[1748831078395,0.94460633,105210.0,105200.0,0.217]
[1748831081623,0.94460633,105210.0,105200.0,0.2265057]
[1748831082281,0.93510163,105210.0,105200.0,0.2265057]
[1748831083898,0.93510163,105210.0,105200.0,0.42612537]
[1748831084508,0.93510163,105210.0,105200.0,0.217]
[1748831084723,0.92559684,105210.0,105200.0,0.217]
[1748831092289,0.90979684,105210.0,105200.0,0.217]
[1748831092703,0.92539684,105210.0,105200.0,0.217]
[1748831095802,0.63283684,105210.0,105200.0,0.217]
[1748831096018,0.92527684,105210.0,105200.0,0.217]
[1748831096660,1.01543684,105210.0,105200.0,0.217]
[1748831100318,0.99983684,105210.0,105200.0,0.217]
[1748831101122,1.01503684,105210.0,105200.0,0.217]
[1748831106003,1.03398458,105210.0,105200.0,0.217]
[1748831109332,1.20608382,105210.0,105200.0,0.217]
[1748831109537,1.20608382,105210.0,105180.0,0.0158978]
[1748831109538,4.16480856,105190.0,105180.0,0.0158978]
[1748831109773,4.5642693,105190.0,105180.0,0.0158978]
[1748831110883,4.5652693,105190.0,105180.0,0.0168978]
[1748831111100,4.56475376,105190.0,105180.0,0.0168978]
[1748831111311,4.57446924,105190.0,105180.0,0.0158978]
[1748831111735,4.57746924,105190.0,105180.0,0.0158978]
[1748831111950,1.00814624,105190.0,105180.0,0.0158978]
[1748831112399,1.05814624,105190.0,105180.0,0.0158978]
[1748831115155,1.15065746,105190.0,105180.0,0.0158978]
[1748831115817,1.05814624,105190.0,105180.0,0.0158978]
[1748831123985,1.46890624,105190.0,105180.0,0.0158978]
[1748831133293,1.45919076,105190.0,105180.0,0.0158978]
[1748831146394,1.45911076,105190.0,105180.0,0.0158978]
[1748831147994,1.06141076,105190.0,105180.0,0.0158978]
[1748831148191,1.44365076,105190.0,105180.0,0.0158978]
[1748831148828,1.46025076,105190.0,105180.0,0.0158978]
[1748831149887,1.44365076,105190.0,105180.0,0.0158978]
[1748831152492,1.46025076,105190.0,105180.0,0.0158978]
[1748831162593,1.46017076,105190.0,105180.0,0.0158978]
[1748831167864,0.4345122,105190.0,105180.0,0.24086257]
[1748831168105,0.51200273,105190.0,105180.0,0.36252392]
[1748831168318,0.47150915,105190.0,105180.0,0.35301687]
[1748831168732,0.48101566,105190.0,105180.0,0.36252383]
[1748831168944,0.4524164,105190.0,105180.0,0.69027123]
[1748831169176,0.00348446,105190.0,105180.0,1.00851176]
[1748831169406,0.00348446,105190.0,105180.0,0.69027123]
[1748831169622,0.00348446,105190.0,105180.0,1.00851176]
[1748831170252,0.34348446,105190.0,105180.0,1.00851176]
[1748831171313,0.34348446,105190.0,105180.0,0.69003104]
[1748831181042,0.35299034,105190.0,105180.0,0.69003104]
[1748831181240,0.34348446,105190.0,105180.0,0.69003104]
[1748831181422,0.35299025,105190.0,105180.0,0.69003104]
[1748831181867,0.34348446,105190.0,105180.0,0.69003104]
[1748831185685,0.00348446,105190.0,105180.0,0.69003104]
[1748831191874,0.00348446,105190.0,105180.0,0.98199104]
[1748831193248,0.00348446,105190.0,105180.0,1.30007812]